bitfinex/quotes_BTCUSD_20220205
["timestamp","ask_amount","ask_price","bid_price","bid_amount"]
[1644036400971,0.1046,41454.0,41453.0,0.7009]
[1644036401568,0.1046,41454.0,41453.0,0.6509]
[1644036402172,0.1046,41454.0,41453.0,0.77262741]
[1644036402569,0.1046,41454.0,41453.0,0.7009]
[1644036404423,0.1046,41454.0,41453.0,0.821466]
[1644036405223,0.1046,41454.0,41453.0,0.7009]
[1644036406022,0.1046,41454.0,41453.0,0.97888469]
[1644036406231,0.1046,41454.0,41453.0,0.76137097]
[1644036406823,0.1046,41454.0,41453.0,0.83619644]
[1644036407223,0.0946,41454.0,41453.0,0.70108797]
[1644036408270,0.0946,41454.0,41453.0,0.7009]
[1644036408473,0.0946,41454.0,41453.0,0.70108797]
[1644036409870,0.0946,41454.0,41453.0,0.65108797]
[1644036410077,0.0946,41454.0,41453.0,0.00018797]
[1644036410078,0.1446,41454.0,41453.0,0.00018797]
[1644036410374,0.1446,41454.0,41449.0,0.00018797]
[1644036410572,0.05,41451.0,41443.0,0.00018797]
[1644036410773,0.05,41451.0,41444.0,0.00018797]
[1644036410971,0.28835032,41451.0,41443.0,0.00018797]
[1644036411227,0.28835032,41451.0,41441.0,0.30018797]
[1644036411228,0.1983008,41449.0,41441.0,0.30018797]
[1644036411425,0.1983008,41449.0,41441.0,0.00018797]
[1644036411622,0.1983008,41449.0,41440.0,0.060307]
[1644036412021,0.1983008,41449.0,41439.0,0.00018797]
[1644036412222,0.1983008,41449.0,41439.0,0.05]
[1644036412422,0.0946,41454.0,41439.0,0.05018797]
[1644036412623,0.00083906,41446.0,41444.0,0.07996745]
[1644036412821,0.00083906,41446.0,41444.0,0.12996745]
[1644036413026,0.00083906,41446.0,41440.0,0.00018797]
[1644036413225,0.00083906,41446.0,41439.0,0.00018797]
[1644036413424,0.05,41448.0,41437.0,0.00018797]
[1644036413621,0.05,41448.0,41436.0,0.94848797]
[1644036413821,0.00083908,41445.0,41436.0,0.40018797]
[1644036414422,0.22801738,41443.0,41436.0,0.40018797]
[1644036414823,0.22801738,41443.0,41436.0,0.20018797]
[1644036415071,0.00083911,41442.0,41436.0,0.20018797]
[1644036415270,0.00083911,41442.0,41436.0,0.00018797]
[1644036415471,0.00083911,41442.0,41432.0,0.31541909]
[1644036415670,0.00083911,41442.0,41432.0,0.31523112]
[1644036415873,0.23953707,41449.0,41434.0,0.060313]
[1644036416073,0.00083914,41439.0,41435.0,0.31210583]
[1644036416271,0.00083914,41439.0,41436.0,0.08765491]
[1644036416577,0.00083914,41439.0,41434.0,0.28626175]
[1644036416772,0.00083914,41439.0,41434.0,0.35020845]
[1644036416972,0.00083914,41439.0,41434.0,0.35002048]
[1644036417171,0.22524433,41442.0,41434.0,0.45002048]
[1644036417372,0.00083915,41439.0,41434.0,0.45002048]
[1644036417772,0.00083915,41439.0,41436.0,0.08151921]
[1644036417971,0.00083915,41439.0,41434.0,0.55020845]
[1644036418173,0.00083915,41439.0,41434.0,0.55002048]
[1644036418474,0.00083915,41439.0,41432.0,0.00018797]
[1644036418728,0.00083915,41439.0,41435.0,0.060313]
[1644036418924,0.00083915,41439.0,41436.0,0.07194133]
[1644036419127,0.00083915,41439.0,41436.0,0.0721293]
[1644036419528,0.20569198,41442.0,41436.0,0.1221293]
[1644036419728,0.00083914,41440.0,41436.0,0.1721293]
[1644036420123,0.00083914,41440.0,41436.0,0.0721293]
[1644036420323,0.00083914,41440.0,41436.0,0.1221293]
[1644036420524,0.00083914,41440.0,41436.0,0.1721293]
[1644036420725,0.01849575,41444.0,41436.0,0.1721293]
[1644036420924,0.00083913,41440.0,41436.0,0.1721293]
[1644036421527,0.00083913,41440.0,41436.0,0.1221293]
[1644036421927,0.05,41442.0,41436.0,0.1221293]
[1644036422127,0.00083913,41440.0,41436.0,0.1221293]
[1644036423171,0.05,41442.0,41436.0,0.1221293]
[1644036423375,0.00083913,41440.0,41436.0,0.1221293]
[1644036424278,0.01901818,41445.0,41436.0,0.1221293]
[1644036424476,0.00083913,41440.0,41439.0,0.060302]
[1644036424872,0.00083913,41440.0,41439.0,0.108502]
[1644036425273,0.00083913,41440.0,41439.0,0.208502]
[1644036425472,0.27364406,41453.0,41439.0,0.208502]
[1644036425673,0.00083911,41442.0,41439.0,0.208502]
[1644036425873,0.00083911,41442.0,41439.0,0.20868997]
[1644036426525,0.05,41449.0,41443.0,0.060303]
[1644036426723,0.05,41450.0,41443.0,0.060303]
[1644036427124,0.05,41450.0,41443.0,0.06049097]
[1644036427323,0.05,41446.0,41443.0,0.06049097]
[1644036427724,0.05,41448.0,41443.0,0.06049097]
[1644036427922,0.21782416,41450.0,41443.0,0.06049097]
[1644036427923,0.05,41451.0,41443.0,0.06049097]
[1644036428823,0.21281078,41449.0,41443.0,0.06049097]
[1644036429126,0.26281078,41449.0,41443.0,0.06049097]
[1644036429325,0.01914056,41453.0,41443.0,0.06049097]
[1644036429724,0.05,41450.0,41443.0,0.06049097]
[1644036430371,0.23038281,41448.0,41443.0,0.06049097]
[1644036431576,0.23038281,41448.0,41443.0,0.00018797]
[1644036431775,0.05,41445.0,41442.0,0.1482]
[1644036431974,0.05,41445.0,41443.0,0.00018797]
[1644036432180,0.05,41445.0,41442.0,0.1482]
[1644036432776,0.20660852,41443.0,41442.0,0.05]
[1644036432978,0.20660852,41443.0,41440.0,0.00018797]
[1644036433175,0.20660852,41443.0,41439.0,0.00018797]
[1644036433176,0.05,41441.0,41439.0,0.00018797]
[1644036433378,0.05,41441.0,41437.0,0.00018797]
[1644036433576,0.05,41441.0,41434.0,0.05018797]
[1644036433819,0.24099816,41439.0,41434.0,0.00018797]
[1644036434021,0.24099816,41439.0,41436.0,0.06414477]
[1644036434224,0.24099816,41439.0,41434.0,0.00018797]
[1644036434421,0.24099816,41439.0,41433.0,0.22080897]
[1644036434624,0.24099816,41439.0,41433.0,0.220621]
[1644036436222,0.24099816,41439.0,41434.0,0.0664036]
[1644036436423,0.24099816,41439.0,41434.0,0.06659157]
[1644036437329,0.05,41441.0,41434.0,0.06659157]
[1644036437576,0.05,41444.0,41437.0,0.060312]
[1644036437772,0.05083904,41444.0,41437.0,0.060312]
[1644036438375,0.256057,41443.0,41437.0,0.060312]
[1644036439575,0.05083907,41444.0,41437.0,0.060312]
[1644036439979,0.05,41444.0,41437.0,0.060312]
[1644036440275,0.05083907,41444.0,41437.0,0.060312]
[1644036440676,0.28023436,41444.0,41437.0,0.060312]
[1644036441080,0.27939529,41444.0,41437.0,0.060312]
[1644036441321,0.28023436,41444.0,41437.0,0.060312]
[1644036442320,0.27939529,41444.0,41437.0,0.060312]
[1644036442524,0.05,41439.0,41435.0,0.00018797]
[1644036442720,0.05,41439.0,41434.0,0.05018797]
[1644036442921,0.05,41436.0,41434.0,0.05018797]
[1644036443223,0.05,41436.0,41434.0,0.00018797]
[1644036443425,0.05,41436.0,41432.0,0.00018797]
[1644036443426,0.26877277,41435.0,41432.0,0.00018797]
[1644036443619,0.05,41433.0,41430.0,0.0008393]
[1644036443819,0.11033466,41433.0,41430.0,0.0008393]
[1644036444418,0.30688988,41433.0,41430.0,0.0008393]
[1644036444997,0.30688988,41433.0,41429.0,0.00102727]
[1644036444998,0.05,41433.0,41429.0,0.00102727]
[1644036445198,0.05,41433.0,41429.0,0.0008393]
[1644036445395,0.05,41430.0,41429.0,0.00102727]
[1644036445996,0.05,41430.0,41429.0,0.00018797]
[1644036446196,0.05,41430.0,41428.0,0.14088789]
[1644036446499,0.05,41433.0,41429.0,0.060327]
[1644036446696,0.05,41433.0,41429.0,0.06051497]
[1644036447295,0.05,41433.0,41429.0,0.06135427]
[1644036448299,0.05,41433.0,41429.0,0.11051497]
[1644036448495,0.05,41433.0,41429.0,0.15955427]
[1644036448929,0.05,41433.0,41429.0,0.57347579]
[1644036449229,0.05,41433.0,41431.0,0.120641]
[1644036449230,0.04990245,41433.0,41431.0,0.120641]
[1644036449530,0.04990245,41433.0,41432.0,0.05]
[1644036449734,0.04990245,41433.0,41432.0,0.05018797]
[1644036452881,0.04990245,41433.0,41432.0,0.05]
[1644036455080,0.04990245,41433.0,41432.0,0.04993723]
[1644036455280,0.04990245,41433.0,41431.0,0.00018803]
[1644036455485,0.04990245,41433.0,41430.0,0.12083003]
[1644036455680,0.04990245,41433.0,41430.0,0.00102732]
[1644036456723,0.04990245,41433.0,41430.0,0.00018803]
[1644036457021,0.04990245,41433.0,41429.0,0.15069622]
[1644036457222,0.01993659,41436.0,41429.0,0.15069622]
[1644036457425,0.04990245,41430.0,41429.0,0.15069622]
[1644036457623,0.04990245,41430.0,41429.0,0.15050819]
[1644036457824,0.04990245,41430.0,41429.0,0.05]
[1644036458031,0.04990245,41430.0,41428.0,0.25140492]
[1644036458223,0.04990245,41430.0,41428.0,0.25121689]
[1644036458427,0.04990245,41430.0,41428.0,0.20121689]
[1644036458624,0.04990245,41430.0,41428.0,0.14088789]
[1644036461476,0.04990245,41430.0,41428.0,0.09088789]
[1644036462374,0.04990245,41430.0,41428.0,0.20121689]
[1644036465621,0.04990245,41430.0,41428.0,0.25121689]
[1644036466221,0.04990245,41430.0,41429.0,0.0482]
[1644036467022,0.04990245,41430.0,41428.0,0.25140492]
[1644036467221,0.04990245,41430.0,41428.0,0.25121689]
[1644036467671,0.04990245,41430.0,41428.0,0.09088789]
[1644036467870,0.27777701,41429.0,41428.0,0.09088789]
[1644036468570,0.54038501,41429.0,41428.0,0.09088789]
[1644036468974,0.262608,41429.0,41428.0,0.09088789]
[1644036469171,0.52854367,41429.0,41428.0,0.09088789]
[1644036469372,0.52854367,41429.0,41427.0,0.00018803]
[1644036469373,0.8,41428.0,41420.0,0.00335613]
[1644036469573,0.04990245,41424.0,41420.0,0.00335613]
[1644036469773,0.35739106,41424.0,41420.0,0.00335613]
[1644036469972,0.35739106,41424.0,41417.0,0.00053594]
[1644036470173,0.56920987,41424.0,41417.0,0.00053594]
[1644036471230,0.56920987,41424.0,41421.0,0.00050791]
[1644036471427,0.90032287,41424.0,41421.0,0.00050791]
[1644036471632,0.8,41423.0,41421.0,0.00050791]
[1644036471828,0.8,41421.0,41417.0,0.00107188]
[1644036472029,0.04990245,41418.0,41417.0,0.00107188]
[1644036472229,0.38101545,41418.0,41417.0,0.00107188]
[1644036472429,0.38101545,41418.0,41417.0,7.188e-05]
[1644036473634,0.67975061,41418.0,41417.0,7.188e-05]
[1644036475070,0.04990245,41418.0,41417.0,7.188e-05]
[1644036475473,0.31763845,41418.0,41417.0,7.188e-05]
[1644036478072,0.37800045,41418.0,41415.0,0.00283658]
[1644036478273,0.37800045,41418.0,41415.0,0.002]
[1644036478824,0.30407384,41417.0,41415.0,0.002]
[1644036479528,0.26800429,41416.0,41415.0,0.002]
[1644036479722,0.59911729,41416.0,41415.0,0.002]
[1644036480321,0.26800429,41416.0,41415.0,0.002]
[1644036481221,0.30407384,41417.0,41415.0,0.002]
[1644036486628,0.24371312,41417.0,41415.0,0.002]
[1644036486826,0.00239958,41412.0,41411.0,0.08346]
[1644036487225,0.05230203,41412.0,41411.0,0.08346]
[1644036488327,0.05230203,41412.0,41411.0,0.0231]
[1644036494326,0.05230203,41412.0,41411.0,0.08658412]
[1644036496122,0.05230203,41412.0,41411.0,0.08158412]
[1644036496320,0.05230203,41412.0,41411.0,0.0181]
[1644036499584,0.05230203,41412.0,41411.0,0.078461]
[1644036499880,0.05230203,41412.0,41411.0,0.0181]
[1644036501423,0.04707183,41412.0,41411.0,0.0181]
[1644036501622,0.28604329,41417.0,41411.0,0.0181]
[1644036501623,0.26457373,41417.0,41411.0,0.0181]
[1644036501823,0.04707183,41413.0,41411.0,0.01828477]
[1644036502226,0.04707183,41413.0,41411.0,0.0181]
[1644036502823,0.04707183,41413.0,41412.0,0.00292817]
[1644036504622,0.04707183,41413.0,41411.0,0.01828477]
[1644036504826,0.04707183,41413.0,41411.0,0.0181]
[1644036506677,0.04707183,41413.0,41411.0,0.02102817]
[1644036507480,0.04707183,41413.0,41411.0,0.0181]
[1644036508481,0.04707183,41413.0,41411.0,0.02102817]
[1644036510825,0.04707183,41413.0,41411.0,0.0181]
[1644036511025,0.04707183,41413.0,41411.0,0.38003239]
[1644036511223,0.04707183,41413.0,41411.0,0.38296056]
[1644036511424,0.04707183,41413.0,41411.0,0.0181]
[1644036512477,0.10743763,41413.0,41411.0,0.0181]
[1644036512878,0.10743763,41413.0,41411.0,0.01828477]
[1644036513881,0.04707183,41413.0,41411.0,0.01828477]
[1644036515184,0.04707183,41413.0,41412.0,0.00292817]
[1644036515380,0.04707183,41413.0,41412.0,0.00018477]
[1644036515582,0.04707183,41413.0,41411.0,0.07864477]
[1644036515781,0.04707183,41413.0,41412.0,0.00292817]
[1644036515982,0.04707183,41413.0,41412.0,0.00018477]
[1644036516236,0.04707183,41413.0,41411.0,0.08157294]
[1644036516428,0.04236465,41413.0,41411.0,0.08628012]
[1644036516629,0.01884759,41417.0,41412.0,0.02589933]
[1644036516827,0.01884759,41417.0,41413.0,0.060359]
[1644036517028,0.01884759,41417.0,41414.0,0.02589933]
[1644036517427,0.04236465,41415.0,41414.0,0.02589933]
[1644036518431,0.0603568,41419.0,41414.0,0.02589933]
[1644036518628,0.03736465,41415.0,41414.0,0.02589933]
[1644036520084,0.03736465,41415.0,41413.0,0.07299435]
[1644036520284,0.03736465,41415.0,41414.0,0.0259011]
[1644036525533,0.03736465,41415.0,41414.0,0.32326913]
[1644036525734,0.10086022,41420.0,41415.0,0.060346]
[1644036525735,0.04050765,41420.0,41415.0,0.060346]
[1644036525930,0.04050765,41420.0,41419.0,0.08256973]
[1644036526130,0.04050765,41420.0,41419.0,0.15667083]
[1644036526330,0.04050765,41420.0,41419.0,0.25667083]
[1644036526530,0.02700689,41420.0,41419.0,0.25667083]
[1644036526731,0.02700689,41420.0,41419.0,0.31700783]
[1644036526932,0.02700689,41420.0,41419.0,0.7448518]
[1644036527131,0.02700689,41420.0,41419.0,0.43050859]
[1644036527978,0.02700689,41420.0,41419.0,1.13650849]
[1644036528779,0.02700689,41420.0,41419.0,1.35672616]
[1644036528980,0.02700689,41420.0,41419.0,0.94238295]
[1644036529178,0.02700689,41420.0,41419.0,0.72216528]
[1644036529580,0.02700689,41420.0,41419.0,0.43050859]
[1644036529781,0.02700689,41420.0,41419.0,0.38230859]
[1644036530180,0.02700689,41420.0,41419.0,0.33050859]
[1644036530380,0.02700689,41420.0,41419.0,0.43050859]
[1644036531626,0.09530244,41422.0,41419.0,0.39110673]
[1644036531828,0.09530244,41422.0,41420.0,0.060337]
[1644036532025,0.09530244,41422.0,41421.0,0.0982]
[1644036532425,0.0945,41422.0,41421.0,0.0982]
[1644036536475,0.0945,41422.0,41421.0,0.09263708]
[1644036536777,0.13186465,41422.0,41421.0,0.09263708]
[1644036537776,0.13186465,41422.0,41421.0,0.10527243]
[1644036537976,0.0945,41422.0,41421.0,0.10527243]
[1644036538176,0.13186465,41422.0,41421.0,0.10527243]
[1644036538380,0.0945,41422.0,41421.0,0.10527243]
[1644036538582,0.13186465,41422.0,41421.0,0.10527243]
[1644036538826,0.0945,41422.0,41421.0,0.10527243]
[1644036542977,0.0945,41422.0,41421.0,0.15527243]
[1644036544379,0.0945,41422.0,41421.0,0.39995301]
[1644036544579,0.13186465,41422.0,41421.0,0.56831066]
[1644036544780,0.0945,41422.0,41421.0,0.43626543]
[1644036544978,0.13186465,41422.0,41421.0,0.43626543]
[1644036545381,0.0945,41422.0,41421.0,0.43626543]
[1644036545882,0.13186465,41422.0,41421.0,0.43626543]
[1644036546338,0.13186465,41422.0,41419.0,0.07297235]
[1644036546533,0.13186465,41422.0,41417.0,0.120695]
[1644036546735,0.03736465,41418.0,41417.0,0.120695]
[1644036547132,0.03736465,41418.0,41413.0,0.00018477]
[1644036547330,0.03736465,41414.0,41412.0,0.61692747]
[1644036547932,0.03736465,41414.0,41412.0,0.61609377]
[1644036548734,0.03736465,41414.0,41412.0,0.12089377]
[1644036551481,0.22745851,41413.0,41412.0,0.00018477]
[1644036551686,0.22745851,41413.0,41411.0,0.01911843]
[1644036552481,0.331113,41412.0,41411.0,0.01911843]
[1644036552681,0.331113,41412.0,41411.0,0.01828477]
[1644036552885,0.28782722,41413.0,41411.0,0.01828477]
[1644036553084,0.331113,41412.0,41411.0,0.01828477]
[1644036553382,0.28782722,41413.0,41411.0,0.01828477]
[1644036554433,0.331113,41412.0,41411.0,0.01828477]
[1644036554629,0.30067893,41412.0,41411.0,0.01828477]
[1644036554839,0.30067893,41412.0,41408.0,0.0011]
[1644036554840,0.8,41409.0,41408.0,0.0011]
[1644036555036,1.16847765,41409.0,41408.0,0.0011]
[1644036555629,0.36847765,41409.0,41408.0,0.0011]
[1644036557031,0.65960717,41409.0,41408.0,0.0011]
[1644036569638,0.36847765,41409.0,41408.0,0.0011]
[1644036569843,0.03736465,41409.0,41408.0,0.00128213]
[1644036570041,0.03736465,41412.0,41408.0,0.00128213]
[1644036570235,0.03736465,41409.0,41408.0,0.00128213]
[1644036571036,0.03736465,41409.0,41408.0,0.12198713]
[1644036571634,0.03736465,41409.0,41408.0,0.17198713]
[1644036572134,0.03736465,41412.0,41408.0,0.18462248]
[1644036572339,0.03736465,41412.0,41411.0,0.01263535]
[1644036574287,0.03736465,41413.0,41412.0,0.18862444]
[1644036574490,0.0946,41414.0,41412.0,0.23682444]
[1644036574687,0.0946,41414.0,41412.0,0.33682444]
[1644036574893,0.0946,41414.0,41412.0,0.43682444]
[1644036575088,0.0946,41414.0,41413.0,0.01263535]
[1644036575487,0.0946,41414.0,41413.0,0.06083535]
[1644036576088,0.09453138,41414.0,41413.0,0.06083535]
[1644036576832,0.09453138,41414.0,41413.0,0.33324904]
[1644036577229,0.09453138,41414.0,41413.0,0.16083535]
[1644036577433,0.09453138,41414.0,41413.0,0.1482]
[1644036578329,0.09453138,41414.0,41413.0,0.0482]
[1644036580777,0.09453138,41414.0,41413.0,0.06083535]
[1644036581378,0.07818691,41414.0,41413.0,0.35341525]
[1644036581580,0.07711556,41414.0,41413.0,0.35341525]
[1644036581778,0.07711556,41414.0,41413.0,0.45341525]
[1644036586232,0.07711556,41414.0,41413.0,0.16083535]
[1644036586431,0.07711556,41414.0,41413.0,0.06083535]
[1644036586631,0.07711556,41414.0,41413.0,0.44883543]
[1644036586632,0.06566754,41414.0,41413.0,0.44883543]
[1644036586832,0.06566754,41414.0,41413.0,0.54883543]
[1644036587482,0.06566754,41414.0,41413.0,0.44883543]
[1644036588284,0.06566754,41414.0,41413.0,0.37673066]
[1644036588884,0.06566754,41414.0,41413.0,0.47673066]
[1644036589086,0.06566754,41414.0,41413.0,0.57673066]
[1644036590686,0.06566754,41414.0,41413.0,0.28670202]
[1644036590887,0.06566754,41414.0,41413.0,0.18670202]
[1644036591928,0.06566754,41414.0,41413.0,0.13670202]
[1644036592529,0.06566754,41414.0,41413.0,0.18670202]
[1644036592930,0.06566754,41414.0,41413.0,0.47297976]
[1644036593331,0.06566754,41414.0,41413.0,0.57297976]
[1644036594129,0.06566754,41414.0,41413.0,0.42297976]
[1644036594337,0.06566754,41414.0,41413.0,0.52297976]
[1644036594532,0.06566754,41414.0,41413.0,0.23670202]
[1644036594731,0.06566754,41414.0,41413.0,0.28670202]
[1644036594985,0.06566754,41414.0,41413.0,0.18850202]
[1644036595587,0.06566754,41414.0,41413.0,0.03850202]
[1644036596687,0.04938629,41414.0,41413.0,0.03850202]
[1644036599633,0.04938629,41414.0,41413.0,0.08670202]
[1644036605784,0.04938629,41414.0,41413.0,0.13670202]
[1644036606234,0.04938629,41414.0,41413.0,0.12406667]
[1644036606432,0.04938629,41414.0,41413.0,0.03850202]
[1644036606635,0.04938629,41414.0,41413.0,0.02586667]
[1644036607132,0.04938629,41414.0,41411.0,0.36226584]
[1644036607333,0.04938629,41414.0,41409.0,0.36226584]
[1644036607334,0.03736465,41412.0,41409.0,0.36226584]
[1644036607734,0.03736465,41412.0,41409.0,0.38814473]
[1644036609035,0.21232602,41411.0,41409.0,0.44850773]
[1644036609235,0.21232602,41411.0,41409.0,0.42262884]
[1644036609637,0.03736465,41412.0,41409.0,0.42262884]
[1644036610081,0.03736465,41412.0,41410.0,0.38814687]
[1644036610282,0.03736465,41412.0,41410.0,0.50885687]
[1644036610482,0.03736465,41412.0,41410.0,0.48297584]
[1644036610682,0.27419702,41412.0,41410.0,0.48297584]
[1644036611083,0.03736465,41412.0,41410.0,0.48297584]
[1644036611685,0.03736465,41412.0,41410.0,0.12071]
[1644036612386,0.03736465,41412.0,41410.0,0.50886186]
[1644036612585,0.03736465,41412.0,41410.0,0.12071]
[1644036612786,0.03736465,41412.0,41410.0,0.48297584]
[1644036612986,0.03736465,41412.0,41410.0,0.12071]
[1644036614233,0.03736465,41412.0,41410.0,0.10771]
[1644036614431,0.03736465,41412.0,41410.0,0.49586623]
[1644036614633,0.03736465,41412.0,41410.0,0.46997584]
[1644036615333,0.03736465,41412.0,41410.0,0.10771]
[1644036615334,0.30385675,41412.0,41410.0,0.10771]
[1644036615534,0.03736465,41412.0,41410.0,0.10771]
[1644036615935,0.03736465,41412.0,41410.0,0.49586565]
[1644036616133,0.03736465,41412.0,41410.0,0.46997584]
[1644036616337,0.03736465,41412.0,41410.0,0.45177584]
[1644036616633,0.03736465,41412.0,41410.0,0.08951]
[1644036618893,0.02236465,41412.0,41410.0,0.08951]
[1644036619286,0.32967341,41414.0,41410.0,0.08951]
[1644036619487,0.02236465,41411.0,41410.0,0.08951]
[1644036622633,0.05013333,41414.0,41410.0,0.13951]
[1644036622634,0.04938629,41414.0,41410.0,0.13951]
[1644036622832,0.05013333,41414.0,41411.0,0.02763535]
[1644036623632,0.02236465,41413.0,41411.0,0.02763535]
[1644036624137,0.02236465,41413.0,41411.0,0.08798035]
[1644036624334,0.02236465,41413.0,41412.0,0.060345]
[1644036624732,0.02236465,41413.0,41412.0,0.108545]
[1644036626388,0.00974891,41413.0,41412.0,0.108545]
[1644036637135,0.00974891,41413.0,41412.0,0.39390002]
[1644036637637,0.00974891,41413.0,41412.0,0.108545]
[1644036642484,0.00974891,41413.0,41412.0,0.103545]
[1644036645835,0.00974891,41413.0,41412.0,0.050345]
[1644036651836,0.00974891,41413.0,41412.0,0.048145]
[1644036655085,0.30974891,41413.0,41412.0,0.048145]
[1644036655288,0.30974891,41413.0,41409.0,0.00018213]
[1644036655289,0.64086191,41413.0,41409.0,0.00018213]
[1644036655491,0.64086191,41413.0,41408.0,0.00207444]
[1644036655492,0.00974891,41410.0,41408.0,0.00207444]
[1644036655688,0.331113,41409.0,41408.0,0.00207444]
[1644036656088,0.55405806,41409.0,41408.0,0.00207444]
[1644036656286,0.55405806,41409.0,41408.0,0.00128213]
[1644036657086,0.55405806,41409.0,41408.0,0.02718565]
[1644036657487,0.82872864,41409.0,41408.0,0.02718565]
[1644036658490,0.82872864,41409.0,41408.0,0.00128213]
[1644036660051,0.82872864,41409.0,41403.0,0.36264268]
[1644036660052,0.79974354,41406.0,41403.0,0.36264268]
[1644036660249,0.79974354,41406.0,41389.0,0.10064997]
[1644036660250,0.86038,41403.0,41390.0,0.41444878]
[1644036660438,0.3,41402.0,41388.0,0.41494878]
[1644036660644,0.05,41389.0,41388.0,0.41494878]
[1644036660937,0.04723584,41389.0,41388.0,0.07351908]
[1644036661138,0.4387,41401.0,41388.0,0.37075492]
[1644036661338,0.02,41394.0,41392.0,0.03]
[1644036661737,0.3905,41401.0,41392.0,0.03]
[1644036661738,0.01807632,41396.0,41392.0,0.150757]
[1644036661938,0.03946053,41396.0,41395.0,0.11680882]
[1644036662591,0.03946053,41396.0,41395.0,0.025]
[1644036662791,0.06446053,41396.0,41395.0,0.025]
[1644036662990,0.07446053,41396.0,41395.0,0.015]
[1644036664591,0.07446053,41396.0,41395.0,0.10152692]
[1644036665595,0.07446053,41396.0,41395.0,0.015]
[1644036665798,0.07446053,41396.0,41393.0,0.060383]
[1644036665996,0.07446053,41396.0,41393.0,0.00083265]
[1644036666250,0.331113,41394.0,41393.0,0.00083265]
[1644036666447,0.57945148,41394.0,41393.0,0.00083265]
[1644036666646,0.82435238,41394.0,41393.0,0.00083265]
[1644036666844,0.57945148,41394.0,41393.0,0.00083265]
[1644036667045,0.24833848,41394.0,41389.0,0.015]
[1644036667245,0.035,41390.0,41388.0,0.08297288]
[1644036667445,0.035,41390.0,41388.0,0.0005]
[1644036668351,0.035,41390.0,41389.0,0.060389]
[1644036668547,0.035,41390.0,41389.0,0.14410328]
[1644036670387,0.035,41390.0,41388.0,0.0005]
[1644036672389,0.035,41390.0,41389.0,0.07818531]
[1644036672787,0.30390655,41390.0,41389.0,0.07818531]
[1644036673832,0.035,41390.0,41389.0,0.07818531]
[1644036674735,0.035,41390.0,41389.0,0.29898053]
[1644036674938,0.035,41390.0,41389.0,0.31398053]
[1644036675332,0.035,41390.0,41389.0,0.29898053]
[1644036675533,0.035,41390.0,41389.0,0.31398053]
[1644036675934,0.12266822,41395.0,41390.0,0.060378]
[1644036676137,0.10186287,41395.0,41394.0,0.015]
[1644036677034,0.10186287,41395.0,41394.0,0.123577]
[1644036677235,0.06686287,41395.0,41394.0,0.50703762]
[1644036677684,0.00078676,41400.0,41394.0,1.19936062]
[1644036677884,0.23920573,41409.0,41400.0,0.24306652]
[1644036678083,0.035,41410.0,41409.0,0.24482236]
[1644036678284,0.035,41410.0,41409.0,0.38044508]
[1644036679484,0.035,41410.0,41409.0,0.44079608]
[1644036684439,0.03531381,41412.0,41409.0,0.50114508]
[1644036684838,0.03531381,41412.0,41411.0,0.015]
[1644036685085,0.00034114,41420.0,41411.0,0.0732]
[1644036685286,0.00081049,41413.0,41412.0,0.120681]
[1644036685485,0.00081049,41413.0,41412.0,0.56451541]
[1644036685886,0.00081049,41413.0,41412.0,0.36190328]
[1644036686390,0.05,41415.0,41412.0,0.48258428]
[1644036686685,0.05,41415.0,41414.0,0.01]
[1644036686686,0.04081047,41415.0,41414.0,0.01]
[1644036686886,0.04081047,41415.0,41414.0,0.11854]
[1644036687286,0.00081047,41415.0,41414.0,0.11854]
[1644036687484,0.04,41415.0,41414.0,0.11854]
[1644036687885,0.00078713,41417.0,41414.0,0.11354]
[1644036688185,0.045,41415.0,41414.0,0.11354]
[1644036689448,0.00078713,41417.0,41414.0,0.10354]
[1644036689649,0.37122827,41423.0,41417.0,0.060338]
[1644036689854,0.00033774,41422.0,41419.0,0.06321636]
[1644036690055,0.19843296,41420.0,41419.0,0.06321636]
[1644036690250,0.00033774,41422.0,41419.0,0.31670478]
[1644036690449,0.31037735,41427.0,41420.0,0.0482]
[1644036690450,0.00033774,41423.0,41420.0,0.0482]
[1644036690648,0.31037735,41427.0,41420.0,0.0482]
[1644036690649,0.245,41421.0,41420.0,0.0482]
[1644036691255,0.00033774,41426.0,41424.0,0.34104889]
[1644036691457,0.5716,41437.0,41425.0,0.05]
[1644036691656,0.0003377,41435.0,41434.0,0.07106403]
[1644036691852,0.5616,41437.0,41434.0,0.07106403]
[1644036691853,0.05,41436.0,41434.0,0.0482]
[1644036692061,0.0503377,41436.0,41434.0,0.0482]
[1644036692251,0.05,41436.0,41434.0,0.0482]
[1644036692703,0.05,41436.0,41434.0,0.108518]
[1644036692902,0.0503377,41436.0,41434.0,0.108518]
[1644036693305,0.00029232,41437.0,41435.0,0.8]
[1644036693505,0.39046894,41450.0,41435.0,0.8]
[1644036693506,0.05,41444.0,41435.0,0.8]
[1644036693707,0.05,41444.0,41440.0,0.060298]
[1644036693907,0.05,41447.0,41441.0,0.0482]
[1644036694105,0.05,41447.0,41442.0,0.060296]
[1644036694308,0.02,41449.0,41444.0,0.08211957]
[1644036694506,0.02,41449.0,41445.0,0.0482]
[1644036694705,0.02,41449.0,41446.0,0.66927276]
[1644036694908,0.02030809,41449.0,41447.0,0.0982]
[1644036695706,0.02030809,41449.0,41448.0,0.38667355]
[1644036695915,0.02,41449.0,41448.0,0.43487355]
[1644036696350,0.02,41459.0,41450.0,0.8]
[1644036696552,0.05,41465.0,41459.0,0.8]
[1644036696750,0.02,41469.0,41460.0,0.6509]
[1644036697151,0.02,41479.0,41468.0,0.6027]
[1644036697349,0.02,41479.0,41470.0,0.6027]
[1644036697551,0.02,41479.0,41471.0,0.108457]
[1644036697748,0.02,41479.0,41471.0,0.208457]
[1644036697947,0.02,41479.0,41476.0,0.19274457]
[1644036698148,0.02,41479.0,41477.0,0.0482]
[1644036698450,0.02,41479.0,41478.0,0.08853856]
[1644036698648,0.02,41479.0,41478.0,0.13673856]
[1644036698848,0.02,41479.0,41478.0,0.44915894]
[1644036699248,0.02,41479.0,41478.0,1.10185894]
[1644036699456,0.02,41479.0,41478.0,0.7509]
[1644036699457,0.26777122,41479.0,41478.0,0.7509]
[1644036699652,0.26777122,41479.0,41478.0,0.6509]
[1644036699653,0.56777122,41479.0,41478.0,0.6509]
[1644036700029,0.56777122,41479.0,41473.0,0.0482]
[1644036700030,0.41777122,41479.0,41473.0,0.0482]
[1644036700226,0.05,41477.0,41473.0,0.0482]